[Event "Titled Tuesday Blitz April 18 Early 2023"]
[White "HamedWafa4"]
[Black "Averjanov, Alexey"]
[BlackFideId "14109867"]
[WhiteElo "2476"]
[BlackElo "2622"]
[Result "0-1"]
[Round "06"]
[TimeControl "180+2"]
[Date "2023.04.18"]
[WhiteClock "0:00:01"]
[BlackClock "0:01:05"]

1. e4 {[%clk 0:00:51]}  c6 {[%clk 0:02:40]} 2. d4 {[%clk 0:00:51]}  d5 {[%clk 0:02:41]} 3. e5 {[%clk 0:00:51]}  Bf5 {[%clk 0:02:41]} 4. h4 {[%clk 0:00:50]}  h5 {[%clk 0:02:40]} 5. Bd3 {[%clk 0:00:51]}  Bxd3 {[%clk 0:02:40]} 6. Qxd3 {[%clk 0:00:52]}  e6 {[%clk 0:02:41]} 7. Nf3 {[%clk 0:00:50]}  Qa5+ {[%clk 0:02:41]} 8. Nbd2 {[%clk 0:00:50]}  Qa6 {[%clk 0:02:42]} 9. c4 {[%clk 0:00:50]}  Nh6 {[%clk 0:02:40]} 10. O-O {[%clk 0:00:50]}  Nf5 {[%clk 0:02:41]} 11. b3 {[%clk 0:00:51]}  Nd7 {[%clk 0:02:41]} 12. Qc3 {[%clk 0:00:50]}  Be7 {[%clk 0:02:39]} 13. a4 {[%clk 0:00:51]}  Nxh4 {[%clk 0:02:37]} 14. Nxh4 {[%clk 0:00:51]}  Bxh4 {[%clk 0:02:37]} 15. Ba3 {[%clk 0:00:52]}  Qb6 {[%clk 0:02:35]} 16. Nf3 {[%clk 0:00:50]}  Be7 {[%clk 0:02:31]} 17. Bxe7 {[%clk 0:00:50]}  Kxe7 {[%clk 0:02:32]} 18. Rfc1 {[%clk 0:00:47]}  g6 {[%clk 0:02:31]} 19. Ng5 {[%clk 0:00:47]}  Qd8 {[%clk 0:02:27]} 20. Qb4+ {[%clk 0:00:46]}  Ke8 {[%clk 0:02:25]} 21. cxd5 {[%clk 0:00:46]}  cxd5 {[%clk 0:02:24]} 22. Rc3 {[%clk 0:00:44]}  Qb6 {[%clk 0:02:09]} 23. Qa3 {[%clk 0:00:33]}  a5 {[%clk 0:02:01]} 24. Rac1 {[%clk 0:00:30]}  Qb4 {[%clk 0:02:01]} 25. Qxb4 {[%clk 0:00:29]}  axb4 {[%clk 0:02:02]} 26. Rc7 {[%clk 0:00:28]}  Ke7 {[%clk 0:01:55]} 27. Rxb7 {[%clk 0:00:28]}  Rhc8 {[%clk 0:01:53]} 28. Rxc8 {[%clk 0:00:27]}  Rxc8 {[%clk 0:01:54]} 29. Nxf7 {[%clk 0:00:28]}  Rc3 {[%clk 0:01:49]} 30. Nd6 {[%clk 0:00:20]}  Rxb3 {[%clk 0:01:50]} 31. Nc8+ {[%clk 0:00:17]}  Kd8 {[%clk 0:01:49]} 32. Nd6 {[%clk 0:00:18]}  Rb1+ {[%clk 0:01:43]} 33. Kh2 {[%clk 0:00:18]}  b3 {[%clk 0:01:44]} 34. a5 {[%clk 0:00:18]}  b2 {[%clk 0:01:40]} 35. Nf7+ {[%clk 0:00:18]}  Ke8 {[%clk 0:01:40]} 36. Nd6+ {[%clk 0:00:18]}  Kd8 {[%clk 0:01:41]} 37. a6 {[%clk 0:00:19]}  Ra1 {[%clk 0:01:37]} 38. Rxb2 {[%clk 0:00:17]}  Rxa6 {[%clk 0:01:38]} 39. Nf7+ {[%clk 0:00:17]}  Ke7 {[%clk 0:01:38]} 40. Nd6 {[%clk 0:00:18]}  Ra7 {[%clk 0:01:35]} 41. Rc2 {[%clk 0:00:17]}  Ra8 {[%clk 0:01:30]} 42. Rc7 {[%clk 0:00:17]}  g5 {[%clk 0:01:27]} 43. f3 {[%clk 0:00:15]}  Rf8 {[%clk 0:01:25]} 44. Kg3 {[%clk 0:00:15]}  Rf4 {[%clk 0:01:23]} 45. Rc8 {[%clk 0:00:15]}  Rf8 {[%clk 0:01:22]} 46. Rc7 {[%clk 0:00:15]}  Rf4 {[%clk 0:01:21]} 47. Rc8 {[%clk 0:00:15]}  Nb6 {[%clk 0:01:17]} 48. Rc7+ {[%clk 0:00:15]}  Kd8 {[%clk 0:01:15]} 49. Rb7 {[%clk 0:00:14]}  Nc4 {[%clk 0:01:15]} 50. Rb8+ {[%clk 0:00:10]}  Kd7 {[%clk 0:01:14]} 51. Rb7+ {[%clk 0:00:09]}  Kc6 {[%clk 0:01:14]} 52. Rg7 {[%clk 0:00:08]}  Rxd4 {[%clk 0:01:10]} 53. Nxc4 {[%clk 0:00:07]}  dxc4 {[%clk 0:01:10]} 54. Rg8 {[%clk 0:00:04]}  Kd5 {[%clk 0:01:06]} 55. Kf2 {[%clk 0:00:01]}  c3 {[%clk 0:01:05]} 0-1


[Site "https://www.chess.com"]

[Event "Titled Tuesday Blitz April 18 Early 2023"]
[White "Vaibhav Jayant Raut"]
[Black "Sandoval Mercado, Carlos"]
[WhiteFideId "5089034"]
[BlackFideId "5109434"]
[WhiteElo "2156"]
[BlackElo "2257"]
[Result "1-0"]
[Round "06"]
[TimeControl "180+2"]
[Date "2023.04.18"]
[WhiteClock "0:00:51"]
[BlackClock "0:00:01"]

1. c4 {[%clk 0:03:00]}  e5 {[%clk 0:02:57]} 2. g3 {[%clk 0:03:01]}  Nf6 {[%clk 0:02:57]} 3. Bg2 {[%clk 0:03:00]}  g6 {[%clk 0:02:48]} 4. Nf3 {[%clk 0:02:54]}  Nc6 {[%clk 0:02:48]} 5. Nc3 {[%clk 0:02:54]}  Bg7 {[%clk 0:02:47]} 6. d3 {[%clk 0:02:51]}  O-O {[%clk 0:02:47]} 7. O-O {[%clk 0:02:52]}  d6 {[%clk 0:02:45]} 8. Rb1 {[%clk 0:02:51]}  a5 {[%clk 0:02:46]} 9. a3 {[%clk 0:02:51]}  Re8 {[%clk 0:02:44]} 10. Ne1 {[%clk 0:02:51]}  Nd4 {[%clk 0:02:34]} 11. e3 {[%clk 0:02:45]}  Ne6 {[%clk 0:02:34]} 12. b4 {[%clk 0:02:44]}  axb4 {[%clk 0:02:34]} 13. axb4 {[%clk 0:02:45]}  c6 {[%clk 0:02:34]} 14. b5 {[%clk 0:02:38]}  d5 {[%clk 0:02:32]} 15. bxc6 {[%clk 0:02:35]}  bxc6 {[%clk 0:02:33]} 16. cxd5 {[%clk 0:02:35]}  cxd5 {[%clk 0:02:33]} 17. Qb3 {[%clk 0:02:25]}  Nc5 {[%clk 0:02:04]} 18. Qb5 {[%clk 0:02:08]}  Bf8 {[%clk 0:01:18]} 19. d4 {[%clk 0:01:51]}  Ba6 {[%clk 0:01:17]} 20. Qb6 {[%clk 0:01:49]}  Qxb6 {[%clk 0:01:04]} 21. Rxb6 {[%clk 0:01:50]}  Bxf1 {[%clk 0:01:05]} 22. Kxf1 {[%clk 0:01:45]}  Ncd7 {[%clk 0:01:02]} 23. Rb1 {[%clk 0:01:39]}  e4 {[%clk 0:00:56]} 24. f3 {[%clk 0:01:39]}  Rec8 {[%clk 0:00:38]} 25. Bd2 {[%clk 0:01:35]}  exf3 {[%clk 0:00:14]} 26. Bxf3 {[%clk 0:01:35]}  Rab8 {[%clk 0:00:11]} 27. Rxb8 {[%clk 0:01:35]}  Rxb8 {[%clk 0:00:12]} 28. Nxd5 {[%clk 0:01:36]}  Nxd5 {[%clk 0:00:13]} 29. Bxd5 {[%clk 0:01:36]}  Nf6 {[%clk 0:00:12]} 30. Bf3 {[%clk 0:01:37]}  Bh6 {[%clk 0:00:11]} 31. Ke2 {[%clk 0:01:32]}  Re8 {[%clk 0:00:10]} 32. Kd3 {[%clk 0:01:23]}  Kg7 {[%clk 0:00:08]} 33. Nc2 {[%clk 0:01:23]}  Nd7 {[%clk 0:00:06]} 34. Bc3 {[%clk 0:01:20]}  f5 {[%clk 0:00:06]} 35. Bc6 {[%clk 0:01:17]}  Rd8 {[%clk 0:00:05]} 36. Ke2 {[%clk 0:01:04]}  Nf6 {[%clk 0:00:06]} 37. d5 {[%clk 0:00:59]}  Kf7 {[%clk 0:00:06]} 38. Nb4 {[%clk 0:00:57]}  Bf8 {[%clk 0:00:05]} 39. Nd3 {[%clk 0:00:55]}  Nxd5 {[%clk 0:00:03]} 40. Bd4 {[%clk 0:00:54]}  Bg7 {[%clk 0:00:01]} 41. Bc5 {[%clk 0:00:51]} 1-0


[Site "https://www.chess.com"]

[Event "Titled Tuesday Blitz April 18 Early 2023"]
[White "Kim, Sergey"]
[Black "Rios Escobar, Adan"]
[WhiteFideId "13700570"]
[BlackFideId "3403645"]
[WhiteElo "2620"]
[BlackElo "2461"]
[Result "0-1"]
[Round "06"]
[TimeControl "180+2"]
[Date "2023.04.18"]
[WhiteClock "0:00:28"]
[BlackClock "0:00:05"]

1. d4 {[%clk 0:03:00]}  Nf6 {[%clk 0:02:39]} 2. c4 {[%clk 0:03:00]}  g6 {[%clk 0:02:40]} 3. Nc3 {[%clk 0:03:00]}  Bg7 {[%clk 0:02:40]} 4. e4 {[%clk 0:03:00]}  d6 {[%clk 0:02:41]} 5. Nge2 {[%clk 0:03:00]}  a6 {[%clk 0:02:27]} 6. a4 {[%clk 0:02:59]}  a5 {[%clk 0:02:13]} 7. Ng3 {[%clk 0:02:59]}  h5 {[%clk 0:02:12]} 8. h4 {[%clk 0:02:58]}  Na6 {[%clk 0:02:12]} 9. Be2 {[%clk 0:02:58]}  Nb4 {[%clk 0:02:12]} 10. Ra3 {[%clk 0:02:55]}  c6 {[%clk 0:01:58]} 11. O-O {[%clk 0:02:51]}  O-O {[%clk 0:01:57]} 12. Bg5 {[%clk 0:02:45]}  Nh7 {[%clk 0:01:51]} 13. Be3 {[%clk 0:02:43]}  e5 {[%clk 0:01:48]} 14. dxe5 {[%clk 0:02:37]}  Bxe5 {[%clk 0:01:45]} 15. f4 {[%clk 0:02:36]}  Bg7 {[%clk 0:01:33]} 16. Bf2 {[%clk 0:02:34]}  Nf6 {[%clk 0:01:11]} 17. c5 {[%clk 0:02:24]}  dxc5 {[%clk 0:01:01]} 18. Bxc5 {[%clk 0:02:22]}  Re8 {[%clk 0:00:52]} 19. Qxd8 {[%clk 0:01:51]}  Rxd8 {[%clk 0:00:53]} 20. e5 {[%clk 0:01:44]}  Ng4 {[%clk 0:00:47]} 21. Nce4 {[%clk 0:01:40]}  Be6 {[%clk 0:00:35]} 22. Rc3 {[%clk 0:01:35]}  Rd7 {[%clk 0:00:31]} 23. Bb6 {[%clk 0:01:33]}  Nd5 {[%clk 0:00:24]} 24. Bc5 {[%clk 0:01:21]}  Nxc3 {[%clk 0:00:23]} 25. bxc3 {[%clk 0:01:21]}  Rad8 {[%clk 0:00:19]} 26. Bb6 {[%clk 0:01:20]}  Ra8 {[%clk 0:00:19]} 27. c4 {[%clk 0:01:15]}  Kh8 {[%clk 0:00:18]} 28. c5 {[%clk 0:01:13]}  Rd4 {[%clk 0:00:17]} 29. Nd6 {[%clk 0:01:12]}  Rxa4 {[%clk 0:00:10]} 30. Bxg4 {[%clk 0:01:06]}  hxg4 {[%clk 0:00:09]} 31. Nge4 {[%clk 0:01:06]}  Bh6 {[%clk 0:00:08]} 32. g3 {[%clk 0:01:04]}  Bd5 {[%clk 0:00:08]} 33. Nf6 {[%clk 0:01:01]}  Ra2 {[%clk 0:00:08]} 34. Rd1 {[%clk 0:00:56]}  Bf8 {[%clk 0:00:06]} 35. Nxd5 {[%clk 0:00:54]}  cxd5 {[%clk 0:00:06]} 36. Rxd5 {[%clk 0:00:54]}  a4 {[%clk 0:00:07]} 37. Nxf7+ {[%clk 0:00:53]}  Kg8 {[%clk 0:00:06]} 38. e6 {[%clk 0:00:49]}  a3 {[%clk 0:00:06]} 39. Rd1 {[%clk 0:00:46]}  Rb2 {[%clk 0:00:06]} 40. Ne5 {[%clk 0:00:34]}  a2 {[%clk 0:00:06]} 41. e7 {[%clk 0:00:29]}  Bxe7 {[%clk 0:00:05]} 42. Nxg6 {[%clk 0:00:28]}  Rb1 {[%clk 0:00:05]} 43. Nxe7+ {[%clk 0:00:28]}  Kf7 {[%clk 0:00:05]} 0-1


[Site "https://www.chess.com"]

[Event "Titled Tuesday Blitz April 18 Early 2023"]
[White "Lamaze, Simon"]
[Black "Girsh, Daniel"]
[WhiteFideId "36069264"]
[BlackFideId "30949190"]
[WhiteElo "2272"]
[BlackElo "2075"]
[Result "1-0"]
[Round "06"]
[TimeControl "180+2"]
[Date "2023.04.18"]
[WhiteClock "0:01:01"]
[BlackClock "0:00:26"]

1. e4 {[%clk 0:02:59]}  c5 {[%clk 0:02:58]} 2. Nf3 {[%clk 0:02:59]}  d6 {[%clk 0:02:59]} 3. d4 {[%clk 0:02:59]}  cxd4 {[%clk 0:03:00]} 4. Nxd4 {[%clk 0:03:00]}  Nf6 {[%clk 0:03:00]} 5. Nc3 {[%clk 0:03:00]}  Nc6 {[%clk 0:03:01]} 6. Bg5 {[%clk 0:03:00]}  e6 {[%clk 0:03:00]} 7. Bb5 {[%clk 0:03:01]}  a6 {[%clk 0:03:01]} 8. Nxc6 {[%clk 0:02:48]}  Qc7 {[%clk 0:02:52]} 9. Nd4+ {[%clk 0:02:44]}  axb5 {[%clk 0:02:51]} 10. Ndxb5 {[%clk 0:02:44]}  Qc6 {[%clk 0:02:46]} 11. Qd4 {[%clk 0:02:34]}  e5 {[%clk 0:02:31]} 12. Qd3 {[%clk 0:02:28]}  Be6 {[%clk 0:02:31]} 13. Bxf6 {[%clk 0:02:27]}  gxf6 {[%clk 0:02:31]} 14. Nd5 {[%clk 0:02:27]}  Ra5 {[%clk 0:02:05]} 15. c4 {[%clk 0:02:26]}  Bh6 {[%clk 0:01:57]} 16. Nxf6+ {[%clk 0:02:18]}  Ke7 {[%clk 0:01:57]} 17. Nd5+ {[%clk 0:02:18]}  Kd7 {[%clk 0:01:57]} 18. a4 {[%clk 0:02:16]}  Rf8 {[%clk 0:01:52]} 19. b4 {[%clk 0:02:08]}  Raa8 {[%clk 0:01:51]} 20. O-O {[%clk 0:02:05]}  f6 {[%clk 0:01:50]} 21. a5 {[%clk 0:02:02]}  f5 {[%clk 0:01:50]} 22. f3 {[%clk 0:02:00]}  Rae8 {[%clk 0:01:45]} 23. Na7 {[%clk 0:01:46]}  Qa6 {[%clk 0:01:41]} 24. Nb6+ {[%clk 0:01:46]}  Ke7 {[%clk 0:01:36]} 25. Nb5 {[%clk 0:01:46]}  Rd8 {[%clk 0:01:28]} 26. Nc7 {[%clk 0:01:46]}  Qa7 {[%clk 0:01:17]} 27. Nxe6 {[%clk 0:01:45]}  Kxe6 {[%clk 0:01:15]} 28. exf5+ {[%clk 0:01:45]}  Rxf5 {[%clk 0:01:14]} 29. Rae1 {[%clk 0:01:36]}  Bf4 {[%clk 0:01:05]} 30. g3 {[%clk 0:01:35]}  Rg8 {[%clk 0:01:04]} 31. Qd5+ {[%clk 0:01:34]}  Ke7 {[%clk 0:01:04]} 32. Qxg8 {[%clk 0:01:34]}  Rg5 {[%clk 0:01:02]} 33. Qxh7+ {[%clk 0:01:33]}  Kf6 {[%clk 0:01:01]} 34. Kg2 {[%clk 0:01:30]}  Rg6 {[%clk 0:00:48]} 35. Nd7+ {[%clk 0:01:27]}  Kf5 {[%clk 0:00:48]} 36. Qf7+ {[%clk 0:01:21]}  Kg5 {[%clk 0:00:47]} 37. gxf4+ {[%clk 0:01:19]}  Kh6+ {[%clk 0:00:44]} 38. Kh1 {[%clk 0:01:16]}  Qd4 {[%clk 0:00:34]} 39. Rg1 {[%clk 0:01:06]}  Qd3 {[%clk 0:00:19]} 40. Qxg6+ {[%clk 0:01:01]}  Qxg6 {[%clk 0:00:19]} 41. Rxg6+ {[%clk 0:01:02]}  Kxg6 {[%clk 0:00:20]} 42. fxe5 {[%clk 0:00:51]}  dxe5 {[%clk 0:00:21]} 43. Nxe5+ {[%clk 0:00:52]}  Kf5 {[%clk 0:00:21]} 44. Nd3 {[%clk 0:00:53]}  b6 {[%clk 0:00:22]} 45. Nc5 {[%clk 0:00:54]}  bxc5 {[%clk 0:00:22]} 46. bxc5 {[%clk 0:00:55]}  Kf4 {[%clk 0:00:21]} 47. c6 {[%clk 0:00:56]}  Kxf3 {[%clk 0:00:22]} 48. c7 {[%clk 0:00:57]}  Kf2 {[%clk 0:00:22]} 49. c8=Q {[%clk 0:00:57]}  Kxe1 {[%clk 0:00:23]} 50. Qh3 {[%clk 0:00:56]}  Kd2 {[%clk 0:00:24]} 51. Qg3 {[%clk 0:00:56]}  Ke2 {[%clk 0:00:23]} 52. h4 {[%clk 0:00:57]}  Kd2 {[%clk 0:00:24]} 53. h5 {[%clk 0:00:57]}  Ke2 {[%clk 0:00:24]} 54. h6 {[%clk 0:00:58]}  Kf1 {[%clk 0:00:24]} 55. h7 {[%clk 0:00:59]}  Ke2 {[%clk 0:00:25]} 56. h8=Q {[%clk 0:00:59]}  Kf1 {[%clk 0:00:25]} 57. a6 {[%clk 0:01:00]}  Ke2 {[%clk 0:00:26]} 58. Qhh2+ {[%clk 0:01:00]}  Kf1 {[%clk 0:00:26]} 59. Qgg1# {[%clk 0:01:01]} 1-0


[Site "https://www.chess.com"]

[Event "Titled Tuesday Blitz April 18 Early 2023"]
[White "Akylbek2021"]
[Black "Avramidou, Anastasia"]
[BlackFideId "4239873"]
[WhiteElo "2429"]
[BlackElo "2160"]
[Result "1-0"]
[Round "06"]
[TimeControl "180+2"]
[Date "2023.04.18"]
[WhiteClock "0:00:24"]
[BlackClock "0:00:04"]

1. e4 {[%clk 0:03:00]}  g6 {[%clk 0:02:56]} 2. d4 {[%clk 0:03:00]}  Bg7 {[%clk 0:02:56]} 3. Nc3 {[%clk 0:03:01]}  c6 {[%clk 0:02:56]} 4. Be3 {[%clk 0:03:01]}  d5 {[%clk 0:02:56]} 5. Nf3 {[%clk 0:02:57]}  dxe4 {[%clk 0:02:56]} 6. Nxe4 {[%clk 0:02:58]}  Nf6 {[%clk 0:02:57]} 7. Bd3 {[%clk 0:02:52]}  Nxe4 {[%clk 0:02:56]} 8. Bxe4 {[%clk 0:02:52]}  Nd7 {[%clk 0:02:56]} 9. h3 {[%clk 0:02:51]}  Nf6 {[%clk 0:02:57]} 10. Bd3 {[%clk 0:02:51]}  O-O {[%clk 0:02:57]} 11. c4 {[%clk 0:02:52]}  Qa5+ {[%clk 0:02:54]} 12. Qd2 {[%clk 0:02:50]}  Qxd2+ {[%clk 0:02:54]} 13. Kxd2 {[%clk 0:02:51]}  Rd8 {[%clk 0:02:54]} 14. Rad1 {[%clk 0:02:48]}  Bf5 {[%clk 0:02:55]} 15. Bxf5 {[%clk 0:02:47]}  gxf5 {[%clk 0:02:56]} 16. Kc2 {[%clk 0:02:46]}  e6 {[%clk 0:02:56]} 17. Nd2 {[%clk 0:02:44]}  Nh5 {[%clk 0:02:33]} 18. g4 {[%clk 0:02:40]}  fxg4 {[%clk 0:02:33]} 19. hxg4 {[%clk 0:02:41]}  Nf6 {[%clk 0:02:34]} 20. g5 {[%clk 0:02:28]}  Ng4 {[%clk 0:02:28]} 21. Ne4 {[%clk 0:02:28]}  e5 {[%clk 0:02:08]} 22. d5 {[%clk 0:02:15]}  cxd5 {[%clk 0:02:03]} 23. Rxd5 {[%clk 0:01:57]}  Rxd5 {[%clk 0:02:03]} 24. cxd5 {[%clk 0:01:57]}  Rc8+ {[%clk 0:02:04]} 25. Kb3 {[%clk 0:01:54]}  b6 {[%clk 0:01:57]} 26. d6 {[%clk 0:01:45]}  Rd8 {[%clk 0:01:41]} 27. Kc4 {[%clk 0:01:37]}  f5 {[%clk 0:01:19]} 28. gxf6 {[%clk 0:01:36]}  Nxf6 {[%clk 0:01:19]} 29. Nxf6+ {[%clk 0:01:34]}  Bxf6 {[%clk 0:01:20]} 30. Rd1 {[%clk 0:01:31]}  Kf7 {[%clk 0:01:19]} 31. Kd5 {[%clk 0:01:27]}  e4 {[%clk 0:00:43]} 32. b3 {[%clk 0:01:25]}  h5 {[%clk 0:00:34]} 33. Rc1 {[%clk 0:01:23]}  h4 {[%clk 0:00:23]} 34. Bf4 {[%clk 0:01:08]}  h3 {[%clk 0:00:18]} 35. Rh1 {[%clk 0:01:03]}  Rh8 {[%clk 0:00:18]} 36. d7 {[%clk 0:00:59]}  Ke7 {[%clk 0:00:15]} 37. Kc6 {[%clk 0:00:59]}  Ke6 {[%clk 0:00:08]} 38. Bc7 {[%clk 0:00:52]}  Be7 {[%clk 0:00:07]} 39. a4 {[%clk 0:00:41]}  Bf6 {[%clk 0:00:02]} 40. Rd1 {[%clk 0:00:30]}  h2 {[%clk 0:00:02]} 41. Rh1 {[%clk 0:00:31]}  Rh6 {[%clk 0:00:01]} 42. Rxh2 {[%clk 0:00:27]}  Rg6 {[%clk 0:00:02]} 43. d8=Q {[%clk 0:00:24]}  Bxd8 {[%clk 0:00:02]} 44. Bxd8 {[%clk 0:00:24]}  e3 {[%clk 0:00:03]} 45. fxe3 {[%clk 0:00:24]}  Rg3 {[%clk 0:00:03]} 46. Kb7 {[%clk 0:00:20]}  Rxe3 {[%clk 0:00:03]} 47. Rb2 {[%clk 0:00:21]}  Kd5 {[%clk 0:00:03]} 48. Kxa7 {[%clk 0:00:21]}  Kc6 {[%clk 0:00:03]} 49. Bxb6 {[%clk 0:00:21]}  Re7+ {[%clk 0:00:03]} 50. Ka6 {[%clk 0:00:22]}  Re8 {[%clk 0:00:03]} 51. b4 {[%clk 0:00:21]}  Ra8+ {[%clk 0:00:02]} 52. Ba7 {[%clk 0:00:22]}  Re8 {[%clk 0:00:02]} 53. b5+ {[%clk 0:00:22]}  Kd5 {[%clk 0:00:02]} 54. b6 {[%clk 0:00:23]}  Kc6 {[%clk 0:00:02]} 55. b7 {[%clk 0:00:23]}  Kc7 {[%clk 0:00:03]} 56. b8=Q+ {[%clk 0:00:23]}  Rxb8 {[%clk 0:00:04]} 57. Bxb8+ {[%clk 0:00:24]} 1-0


[Site "https://www.chess.com"]

[Event "Titled Tuesday Blitz April 18 Early 2023"]
[White "kuanysh1981"]
[Black "Sokolovsky, Yahli"]
[BlackFideId "2820242"]
[WhiteElo "2427"]
[BlackElo "2316"]
[Result "0-1"]
[Round "06"]
[TimeControl "180+2"]
[Date "2023.04.18"]
[WhiteClock "0:00:07"]
[BlackClock "0:00:09"]

1. e4 {[%clk 0:03:00]}  d6 {[%clk 0:03:00]} 2. d4 {[%clk 0:02:59]}  Nf6 {[%clk 0:03:01]} 3. Bd3 {[%clk 0:02:57]}  g6 {[%clk 0:03:01]} 4. Nf3 {[%clk 0:02:56]}  Bg7 {[%clk 0:03:01]} 5. h3 {[%clk 0:02:54]}  O-O {[%clk 0:02:59]} 6. O-O {[%clk 0:02:53]}  c5 {[%clk 0:02:59]} 7. c3 {[%clk 0:02:52]}  Nc6 {[%clk 0:02:58]} 8. Re1 {[%clk 0:02:52]}  e5 {[%clk 0:02:44]} 9. Be3 {[%clk 0:02:41]}  cxd4 {[%clk 0:02:36]} 10. cxd4 {[%clk 0:02:40]}  d5 {[%clk 0:02:31]} 11. exd5 {[%clk 0:02:34]}  exd4 {[%clk 0:01:49]} 12. Nxd4 {[%clk 0:02:19]}  Nxd4 {[%clk 0:01:50]} 13. Bxd4 {[%clk 0:02:18]}  Qxd5 {[%clk 0:01:51]} 14. Bc3 {[%clk 0:02:06]}  Rd8 {[%clk 0:01:46]} 15. Be2 {[%clk 0:02:05]}  Bf5 {[%clk 0:01:34]} 16. Qxd5 {[%clk 0:01:57]}  Rxd5 {[%clk 0:01:35]} 17. Bf3 {[%clk 0:01:54]}  Rd7 {[%clk 0:01:25]} 18. Na3 {[%clk 0:01:49]}  Rc8 {[%clk 0:00:55]} 19. Rad1 {[%clk 0:01:45]}  Rxd1 {[%clk 0:00:52]} 20. Rxd1 {[%clk 0:01:45]}  Ne4 {[%clk 0:00:32]} 21. Bxg7 {[%clk 0:01:42]}  Kxg7 {[%clk 0:00:33]} 22. g4 {[%clk 0:01:36]}  Ng5 {[%clk 0:00:34]} 23. Bg2 {[%clk 0:01:15]}  Be6 {[%clk 0:00:28]} 24. Nb5 {[%clk 0:01:08]}  h5 {[%clk 0:00:22]} 25. f4 {[%clk 0:01:04]}  Nh7 {[%clk 0:00:22]} 26. Nd6 {[%clk 0:00:56]}  Rc2 {[%clk 0:00:22]} 27. f5 {[%clk 0:00:53]}  gxf5 {[%clk 0:00:21]} 28. gxf5 {[%clk 0:00:52]}  Bxa2 {[%clk 0:00:21]} 29. Ne8+ {[%clk 0:00:33]}  Kf8 {[%clk 0:00:21]} 30. Rd8 {[%clk 0:00:30]}  Ke7 {[%clk 0:00:21]} 31. Ra8 {[%clk 0:00:27]}  Rxb2 {[%clk 0:00:20]} 32. f6+ {[%clk 0:00:20]}  Nxf6 {[%clk 0:00:20]} 33. Nxf6 {[%clk 0:00:20]}  Kxf6 {[%clk 0:00:21]} 34. Rxa7 {[%clk 0:00:21]}  b5 {[%clk 0:00:19]} 35. Ra6+ {[%clk 0:00:17]}  Kg5 {[%clk 0:00:16]} 36. Rb6 {[%clk 0:00:15]}  Be6 {[%clk 0:00:16]} 37. Kf1 {[%clk 0:00:13]}  h4 {[%clk 0:00:14]} 38. Kg1 {[%clk 0:00:11]}  Kf4 {[%clk 0:00:14]} 39. Bf1 {[%clk 0:00:11]}  Kg3 {[%clk 0:00:11]} 40. Rxb5 {[%clk 0:00:10]}  Rxb5 {[%clk 0:00:09]} 41. Bxb5 {[%clk 0:00:09]}  Bxh3 {[%clk 0:00:10]} 42. Bc6 {[%clk 0:00:09]}  f5 {[%clk 0:00:10]} 43. Bd7 {[%clk 0:00:08]}  f4 {[%clk 0:00:10]} 44. Bc6 {[%clk 0:00:08]}  f3 {[%clk 0:00:10]} 45. Bb5 {[%clk 0:00:07]}  f2+ {[%clk 0:00:09]} 0-1


[Site "https://www.chess.com"]

[Event "Titled Tuesday Blitz April 18 Early 2023"]
[White "Gheorghiu, Calin"]
[Black "wqws"]
[WhiteFideId "1200305"]
[WhiteElo "2223"]
[BlackElo "2592"]
[Result "0-1"]
[Round "06"]
[TimeControl "180+2"]
[Date "2023.04.18"]
[WhiteClock "0:00:05"]
[BlackClock "0:00:49"]

1. e4 {[%clk 0:03:00]}  c5 {[%clk 0:02:59]} 2. Nf3 {[%clk 0:03:00]}  d6 {[%clk 0:02:59]} 3. d4 {[%clk 0:02:58]}  cxd4 {[%clk 0:03:00]} 4. Nxd4 {[%clk 0:02:57]}  Nf6 {[%clk 0:03:00]} 5. Nc3 {[%clk 0:02:58]}  a6 {[%clk 0:03:01]} 6. Be3 {[%clk 0:02:56]}  e5 {[%clk 0:03:00]} 7. Nb3 {[%clk 0:02:55]}  Be7 {[%clk 0:02:55]} 8. f3 {[%clk 0:02:54]}  h5 {[%clk 0:02:54]} 9. Qd2 {[%clk 0:02:52]}  Be6 {[%clk 0:02:55]} 10. Be2 {[%clk 0:02:42]}  Nbd7 {[%clk 0:02:52]} 11. Nd5 {[%clk 0:02:38]}  Nxd5 {[%clk 0:02:47]} 12. exd5 {[%clk 0:02:37]}  Bf5 {[%clk 0:02:48]} 13. O-O {[%clk 0:02:37]}  O-O {[%clk 0:02:46]} 14. f4 {[%clk 0:02:22]}  exf4 {[%clk 0:02:43]} 15. Bxf4 {[%clk 0:02:22]}  Bg6 {[%clk 0:02:43]} 16. Kh1 {[%clk 0:02:15]}  Rc8 {[%clk 0:02:40]} 17. Nd4 {[%clk 0:02:13]}  Nc5 {[%clk 0:02:37]} 18. Bf3 {[%clk 0:01:57]}  Bf6 {[%clk 0:02:30]} 19. Rae1 {[%clk 0:01:55]}  Qb6 {[%clk 0:02:24]} 20. b4 {[%clk 0:00:45]}  Nd7 {[%clk 0:02:19]} 21. Be3 {[%clk 0:00:41]}  Qc7 {[%clk 0:02:18]} 22. Rc1 {[%clk 0:00:33]}  Ne5 {[%clk 0:02:18]} 23. Be2 {[%clk 0:00:27]}  Nc4 {[%clk 0:02:16]} 24. Bxc4 {[%clk 0:00:26]}  Qxc4 {[%clk 0:02:17]} 25. Nf5 {[%clk 0:00:22]}  Bxf5 {[%clk 0:02:05]} 26. Rxf5 {[%clk 0:00:20]}  Qe4 {[%clk 0:01:59]} 27. Rxh5 {[%clk 0:00:17]}  Bb2 {[%clk 0:01:59]} 28. Rg1 {[%clk 0:00:13]}  Rxc2 {[%clk 0:01:58]} 29. Qe1 {[%clk 0:00:13]}  Re8 {[%clk 0:01:55]} 30. Rh3 {[%clk 0:00:08]}  Bd4 {[%clk 0:01:52]} 31. Qd1 {[%clk 0:00:04]}  Bxe3 {[%clk 0:01:37]} 32. Rxe3 {[%clk 0:00:05]}  Qxe3 {[%clk 0:01:35]} 33. Qxc2 {[%clk 0:00:05]}  Qd4 {[%clk 0:01:31]} 34. Qa4 {[%clk 0:00:04]}  Re7 {[%clk 0:01:25]} 35. Qa5 {[%clk 0:00:04]}  Re8 {[%clk 0:01:15]} 36. Qa4 {[%clk 0:00:04]}  Kf8 {[%clk 0:01:15]} 37. Qd7 {[%clk 0:00:01]}  Qxd5 {[%clk 0:01:13]} 38. Rf1 {[%clk 0:00:02]}  Qxa2 {[%clk 0:01:07]} 39. Qxd6+ {[%clk 0:00:01]}  Kg8 {[%clk 0:01:07]} 40. Qd7 {[%clk 0:00:02]}  Qe6 {[%clk 0:00:55]} 41. Qxb7 {[%clk 0:00:01]}  Qc4 {[%clk 0:00:55]} 42. Qf3 {[%clk 0:00:01]}  Rf8 {[%clk 0:00:54]} 43. Qf4 {[%clk 0:00:01]}  Qb5 {[%clk 0:00:52]} 44. h3 {[%clk 0:00:01]}  Qd5 {[%clk 0:00:50]} 45. Kh2 {[%clk 0:00:01]}  Rc8 {[%clk 0:00:49]} 46. Rf3 {[%clk 0:00:02]}  Qc4 {[%clk 0:00:48]} 47. Qxc4 {[%clk 0:00:02]}  Rxc4 {[%clk 0:00:49]} 48. Ra3 {[%clk 0:00:02]}  Rc6 {[%clk 0:00:49]} 49. Ra5 {[%clk 0:00:02]}  Rb6 {[%clk 0:00:50]} 50. Ra4 {[%clk 0:00:02]}  Kf8 {[%clk 0:00:50]} 51. Kg3 {[%clk 0:00:02]}  Ke7 {[%clk 0:00:50]} 52. Kf3 {[%clk 0:00:03]}  Kd7 {[%clk 0:00:51]} 53. Ke4 {[%clk 0:00:03]}  Kc6 {[%clk 0:00:51]} 54. Kd4 {[%clk 0:00:03]}  Kb5 {[%clk 0:00:51]} 55. Ra1 {[%clk 0:00:03]}  Kxb4 {[%clk 0:00:51]} 56. Rb1+ {[%clk 0:00:04]}  Ka5 {[%clk 0:00:51]} 57. Ra1+ {[%clk 0:00:04]}  Kb5 {[%clk 0:00:52]} 58. Kd5 {[%clk 0:00:04]}  Rg6 {[%clk 0:00:48]} 59. Rb1+ {[%clk 0:00:04]}  Ka5 {[%clk 0:00:48]} 60. Ra1+ {[%clk 0:00:04]}  Kb6 {[%clk 0:00:48]} 61. g4 {[%clk 0:00:04]}  a5 {[%clk 0:00:46]} 62. Rb1+ {[%clk 0:00:04]}  Kc7 {[%clk 0:00:47]} 63. Kc5 {[%clk 0:00:03]}  a4 {[%clk 0:00:46]} 64. Ra1 {[%clk 0:00:03]}  Ra6 {[%clk 0:00:45]} 65. Kb4 {[%clk 0:00:03]}  a3 {[%clk 0:00:45]} 66. Rxa3 {[%clk 0:00:03]}  Rxa3 {[%clk 0:00:45]} 67. Kxa3 {[%clk 0:00:04]}  Kd6 {[%clk 0:00:46]} 68. Kb4 {[%clk 0:00:04]}  Ke5 {[%clk 0:00:47]} 69. Kc5 {[%clk 0:00:05]}  Kf4 {[%clk 0:00:47]} 70. Kd6 {[%clk 0:00:05]}  Kg3 {[%clk 0:00:48]} 71. Ke7 {[%clk 0:00:05]}  Kxh3 {[%clk 0:00:48]} 72. Kxf7 {[%clk 0:00:05]}  g5 {[%clk 0:00:49]} 0-1


[Site "https://www.chess.com"]